fUST/lending_fUST_20250502
["ID","MTS","AMOUNT","RATE_DAILY","PERIOD"]
[359613196,1746183053554,-400.0,0.00019726,2]
[359613197,1746183053564,-521.62965697,0.00019726,2]
[359613198,1746183053574,-400.0,0.00019726,2]
[359613199,1746183053583,-400.0,0.00019726,2]
[359613200,1746183053593,-400.0,0.00019726,2]
[359613201,1746183053602,-400.0,0.00019726,2]
[359613202,1746183053612,-731.07,0.00019726,2]
[359613203,1746183053621,-513.85552796,0.00019726,2]
[359613204,1746183053631,-400.0,0.00019726,2]
[359613205,1746183053641,-400.0,0.00019726,2]
[359613206,1746183053650,-400.0,0.00019726,2]
[359613207,1746183053666,-400.0,0.00019726,2]
[359613208,1746183053675,-400.0,0.00019726,2]
[359613209,1746183053685,-400.0,0.00019726,2]
[359613210,1746183053694,-400.0,0.00019726,2]
[359613211,1746183053705,-400.0,0.00019726,2]
[359613212,1746183053714,-400.0,0.00019726,2]
[359613213,1746183053723,-400.0,0.00019726,2]
[359613214,1746183053735,-400.0,0.00019726,2]
[359613215,1746183053744,-400.0,0.00019726,2]
[359613216,1746183053753,-400.0,0.00019726,2]
[359613217,1746183053763,-400.0,0.00019726,2]
[359613218,1746183053772,-888.49,0.00019726,2]
[359613219,1746183053782,-400.0,0.00019726,2]
[359613220,1746183053792,-400.0,0.00019726,2]
[359613221,1746183053801,-1158.19,0.00019726,2]
[359613222,1746183053810,-400.0,0.00019726,2]
[359613223,1746183053820,-400.0,0.00019726,2]
[359613224,1746183053830,-500.0,0.00019726,2]
[359613225,1746183053841,-400.0,0.00019726,2]
[359613226,1746183053850,-1219.35,0.00019726,2]
[359613227,1746183053860,-502.01,0.00019726,2]
[359613228,1746183053870,-400.0,0.00019726,2]
[359613229,1746183053880,-1953.71,0.00019726,2]
[359613230,1746183053889,-400.0,0.00019726,2]
[359613231,1746183053899,-689.0,0.00019726,2]
[359613232,1746183053909,-400.0,0.00019726,2]
[359613233,1746183053918,-400.0,0.00019726,2]
[359613234,1746183053928,-1864.86,0.00019726,2]
[359613235,1746183053938,-2646.95,0.00019726,2]
[359613236,1746183053948,-400.0,0.00019726,2]
[359613237,1746183053958,-400.0,0.00019726,2]
[359613238,1746183053969,-400.0,0.00019726,2]
[359613239,1746183053979,-400.0,0.00019726,2]
[359613240,1746183053989,-400.0,0.00019726,2]
[359613241,1746183053999,-8810.17,0.00019726,2]
[359613242,1746183054008,-400.0,0.00019726,2]
[359613243,1746183054018,-400.0,0.00019726,2]
[359613244,1746183054028,-400.0,0.00019726,2]
[359613245,1746183054038,-400.0,0.00019726,2]
[359613246,1746183054048,-400.0,0.00019726,2]
[359613247,1746183054057,-898.1,0.00019726,2]
[359613248,1746183054066,-6700.34,0.00019726,2]
[359613249,1746183054076,-400.0,0.00019726,2]
[359613250,1746183054087,-453.13,0.00019726,2]
[359613251,1746183054098,-400.0,0.00019726,2]
[359613252,1746183054108,-603.22,0.00019726,2]
[359613253,1746183054118,-220.73680679,0.00019726,2]
[359613254,1746183054127,-400.0,0.00019726,2]
[359613255,1746183054137,-400.0,0.00019726,2]
[359613256,1746183054147,-400.0,0.00019726,2]
[359613257,1746183054157,-400.0,0.00019726,2]
[359613258,1746183054167,-1346.02,0.00019726,2]
[359613259,1746183054177,-400.0,0.00019726,2]
[359613260,1746183054187,-500.0,0.00019726,2]
[359613261,1746183054198,-400.0,0.00019726,2]
[359613262,1746183054207,-2087.0,0.00019726,2]
[359613263,1746183054217,-936.5,0.00019726,2]
[359613264,1746183054228,-673.98,0.00019726,2]
[359613265,1746183054238,-3151.4,0.00019726,2]
[359613266,1746183054249,-400.0,0.00019726,2]
[359613267,1746183054259,-400.0,0.00019726,2]
[359613268,1746183054269,-3311.51,0.00019726,2]
[359613269,1746183054279,-2167.32,0.00019726,2]
[359613270,1746183054289,-400.0,0.00019726,2]
[359613271,1746183054298,-404.25453159,0.00019726,2]
[359613272,1746183054309,-808.22,0.00019726,2]
[359613273,1746183054318,-400.0,0.00019726,2]
[359613274,1746183054328,-771.6,0.00019726,2]
[359613275,1746183054338,-320.5404043,0.00019726,2]
[359613276,1746183054348,-400.0,0.00019726,2]
[359613277,1746183054358,-1138.61,0.00019726,2]
[359613278,1746183054367,-486.46,0.00019726,2]
[359613279,1746183054377,-401.65,0.00019726,2]
[359613280,1746183054387,-400.0,0.00019726,2]
[359613281,1746183054397,-894.63,0.00019726,2]
[359613282,1746183054408,-400.0,0.00019726,2]
[359613283,1746183054418,-2762.65,0.00019726,2]
[359613284,1746183054429,-400.0,0.00019726,2]
[359613285,1746183054440,-400.0,0.00019726,2]
[359613286,1746183054450,-400.0,0.00019726,2]
[359613287,1746183054460,-400.0,0.00019726,2]
[359613288,1746183054470,-400.0,0.00019726,2]
[359613289,1746183054480,-473.08,0.00019726,2]
[359613290,1746183054489,-400.0,0.00019726,2]
[359613291,1746183054499,-400.0,0.00019726,2]
[359613292,1746183054509,-920.64,0.00019726,2]
[359613293,1746183054518,-1996.74,0.00019726,2]
[359613294,1746183054528,-509.25,0.00019726,2]
[359613295,1746183054538,-400.0,0.00019726,2]
[359613296,1746183054548,-400.0,0.00019726,2]
[359613297,1746183054558,-438.68,0.00019726,2]
[359613298,1746183054568,-645.3,0.00019726,2]
[359613299,1746183054578,-400.0,0.00019726,2]
[359613300,1746183054588,-400.0,0.00019726,2]
[359613301,1746183054598,-400.0,0.00019726,2]
[359613302,1746183054608,-747.82,0.00019726,2]
[359613303,1746183054618,-520.12,0.00019726,2]
[359613304,1746183054627,-3565.25,0.00019726,2]
[359613305,1746183054638,-400.0,0.00019726,2]
[359613306,1746183054647,-1038.24437889,0.00019726,2]
[359613307,1746183055552,-400.0,0.00019178,2]
[359613308,1746183055562,-400.0,0.00019178,2]
[359613309,1746183055572,-400.0,0.00019178,2]
[359613310,1746183055581,-400.0,0.00019178,2]
[359613311,1746183055592,-400.0,0.00019452,2]
[359613312,1746183055601,-400.0,0.00019452,2]
[359613313,1746183055612,-2100.56215354,0.00019726,2]
[359613314,1746183055624,-4643.19346757,0.00019726,2]
[359613315,1746183055634,-400.0,0.00019726,2]
[359613316,1746183055643,-400.0,0.00019726,2]
[359613317,1746183055654,-6879.56,0.00019726,2]
[359613318,1746183055669,-2369.16,0.00019726,2]
[359613319,1746183055680,-1354.57,0.00019726,2]
[359613320,1746183055690,-400.0,0.00019726,2]
[359613321,1746183055701,-2800.74,0.00019726,2]
[359613322,1746183055711,-545.79682645,0.00019726,2]
[359613323,1746183055721,-400.0,0.00019726,2]
[359613324,1746183055730,-437.3,0.00019726,2]
[359613325,1746183055741,-818.26,0.00019726,2]
[359613326,1746183055753,-400.0,0.00019726,2]
[359613327,1746183055763,-400.0,0.00019726,2]
[359613328,1746183055773,-468.81,0.00019726,2]
[359613329,1746183055783,-400.0,0.00019726,2]
[359613330,1746183055792,-400.0,0.00019726,2]
[359613331,1746183055802,-4229.74,0.00019726,2]
[359613332,1746183055812,-1571.98,0.00019726,2]
[359613333,1746183055821,-419.58155686,0.00019726,2]
[359613334,1746183055831,-477.55,0.00019726,2]
[359613335,1746183055841,-3453.3,0.00019726,2]
[359613336,1746183055850,-400.0,0.00019726,2]
[359613337,1746183055860,-400.0,0.00019726,2]
[359613338,1746183055870,-669.26,0.00019726,2]
[359613339,1746183055881,-460.49,0.00019726,2]
[359613340,1746183055891,-400.0,0.00019726,2]
[359613341,1746183055901,-400.0,0.00019726,2]
[359613342,1746183055912,-400.0,0.00019726,2]
[359613343,1746183055921,-400.0,0.00019726,2]
[359613344,1746183055931,-400.0,0.00019726,2]
[359613345,1746183055945,-400.0,0.00019726,2]
[359613346,1746183055955,-1304.73,0.00019726,2]
[359613347,1746183055965,-400.0,0.00019726,2]
[359613348,1746183055975,-400.0,0.00019726,2]
[359613349,1746183055984,-400.0,0.00019726,2]
[359613350,1746183055994,-543.48,0.00019726,2]
[359613351,1746183056003,-400.0,0.00019726,2]
[359613352,1746183056013,-862.1,0.00019726,2]
[359613353,1746183056023,-928.47,0.00019726,2]
[359613354,1746183056033,-400.0,0.00019726,2]
[359613355,1746183056042,-728.73,0.00019726,2]
[359613356,1746183056053,-598.62,0.00019726,2]
[359613357,1746183056063,-400.0,0.00019726,2]
[359613358,1746183056072,-402.89,0.00019726,2]
[359613359,1746183056083,-239.63262186,0.00019726,2]
[359613360,1746183056094,-300.36707647,0.00019726,2]
[359613361,1746183056104,-400.0,0.00019726,2]
[359613362,1746183056114,-910.75,0.00019726,2]
[359613363,1746183056125,-400.0,0.00019726,2]
[359613364,1746183056136,-870.32,0.00019726,2]
[359613365,1746183056147,-716.52,0.00019726,2]
[359613366,1746183056159,-3287.4,0.00019726,2]
[359613367,1746183056169,-470.89,0.00019726,2]
[359613368,1746183056179,-207.29038792,0.00019726,2]
[359613369,1746183056189,-3155.16,0.00019726,2]
[359613370,1746183056199,-400.0,0.00019726,2]
[359613371,1746183056209,-1704.98,0.00019726,2]
[359613372,1746183056219,-400.0,0.00019726,2]
[359613373,1746183056228,-2043.96,0.00019726,2]
[359613374,1746183056238,-221.09084118,0.00019726,2]
[359613375,1746183056247,-400.0,0.00019726,2]
[359613376,1746183056257,-425.35,0.00019726,2]
[359613377,1746183056266,-448.38,0.00019726,2]
[359613378,1746183056276,-400.0,0.00019726,2]
[359613379,1746183056285,-400.0,0.00019726,2]
[359613380,1746183056296,-1121.74,0.00019726,2]
[359613381,1746183056305,-400.0,0.00019726,2]
[359613382,1746183056315,-3401.5,0.00019726,2]
[359613383,1746183056325,-1007.29,0.00019726,2]
[359613384,1746183056336,-301.91021154,0.00019726,2]
[359613385,1746183056346,-400.0,0.00019726,2]
[359613386,1746183056356,-820.89,0.00019726,2]
[359613387,1746183056366,-400.0,0.00019726,2]
[359613388,1746183056375,-1578.6,0.00019726,2]
[359613389,1746183056385,-400.0,0.00019726,2]
[359613390,1746183056395,-400.0,0.00019726,2]
[359613391,1746183056406,-2074.52,0.00019726,2]
[359613392,1746183056416,-400.0,0.00019726,2]
[359613393,1746183056426,-1177.16,0.00019726,2]
[359613394,1746183056438,-400.0,0.00019726,2]
[359613395,1746183056448,-400.0,0.00019726,2]
[359613396,1746183056459,-400.0,0.00019726,2]
[359613397,1746183056469,-400.0,0.00019726,2]
[359613398,1746183056479,-400.0,0.00019726,2]
[359613399,1746183056490,-400.0,0.00019726,2]
[359613400,1746183056500,-400.0,0.00019726,2]
[359613401,1746183056511,-3666.62,0.00019726,2]
[359613402,1746183056521,-400.0,0.00019726,2]
[359613403,1746183056531,-400.0,0.00019726,2]
[359613404,1746183056541,-2545.16609523,0.00019726,2]
[359613405,1746183056557,-1194.59390477,0.00019726,2]
[359613406,1746183056567,-400.0,0.00019726,2]
[359613407,1746183056577,-400.0,0.00019726,2]
[359613408,1746183056587,-2942.57,0.00019726,2]
[359613409,1746183056598,-965.4,0.00019726,2]
[359613410,1746183056608,-400.0,0.00019726,2]
[359613411,1746183056620,-400.0,0.00019726,2]
[359613412,1746183056630,-535.95,0.00019726,2]
[359613413,1746183056641,-230.38227675,0.00019726,2]
[359613414,1746183056651,-400.0,0.00019726,2]
[359613415,1746183056668,-582.3,0.00019726,2]
[359613416,1746183056679,-400.0,0.00019726,2]
[359613417,1746183056691,-1101.42,0.00019726,2]
[359613418,1746183056703,-500.0,0.00019726,2]
[359613419,1746183056713,-400.0,0.00019726,2]
[359613420,1746183056723,-400.0,0.00019726,2]
[359613421,1746183056734,-400.0,0.00019726,2]
[359613422,1746183056746,-529.87,0.00019726,2]
[359613423,1746183056756,-400.0,0.00019726,2]
[359613424,1746183056767,-928.92,0.00019726,2]
[359613425,1746183056778,-2863.74,0.00019726,2]
[359613426,1746183056789,-400.0,0.00019726,2]
[359613427,1746183056799,-203.87350808,0.00019726,2]
[359613428,1746183056810,-733.5,0.00019726,2]
[359613429,1746183056822,-400.0,0.00019726,2]
[359613430,1746183056833,-400.0,0.00019726,2]
[359613431,1746183056845,-400.0,0.00019726,2]
[359613432,1746183056856,-2339.15,0.00019726,2]
[359613433,1746183056866,-400.0,0.00019726,2]
[359613434,1746183056875,-400.0,0.00019726,2]
[359613435,1746183056886,-400.0,0.00019726,2]
[359613436,1746183056896,-1054.81,0.00019726,2]
[359613437,1746183056906,-400.0,0.00019726,2]
[359613438,1746183056915,-400.0,0.00019726,2]
[359613439,1746183056925,-501.99,0.00019726,2]
[359613440,1746183056936,-400.0,0.00019726,2]
[359613441,1746183056948,-400.0,0.00019726,2]
[359613442,1746183056959,-210.89824474,0.00019726,2]
[359613443,1746183056969,-400.0,0.00019726,2]
[359613444,1746183056980,-400.0,0.00019726,2]
[359613445,1746183056990,-400.0,0.00019726,2]
[359613446,1746183057000,-400.63,0.00019726,2]
[359613447,1746183057011,-780.32,0.00019726,2]
[359613448,1746183057022,-412.27,0.00019726,2]
[359613449,1746183057032,-400.0,0.00019726,2]
[359613450,1746183057042,-2385.64,0.00019726,2]
[359613451,1746183057052,-3812.54,0.00019726,2]
[359613452,1746183057063,-400.0,0.00019726,2]
[359613453,1746183057073,-400.0,0.00019726,2]
[359613454,1746183057083,-429.99754627,0.00019726,2]
[359613455,1746183057094,-400.0,0.00019726,2]
[359613456,1746183057105,-1423.16,0.00019726,2]
[359613457,1746183057115,-400.0,0.00019726,2]
[359613458,1746183057125,-743.44,0.00019726,2]
[359613459,1746183057136,-432.4,0.00019726,2]
[359613460,1746183057146,-716.51,0.00019726,2]
[359613461,1746183057156,-836.53,0.00019726,2]
[359613462,1746183057167,-400.0,0.00019726,2]
[359613463,1746183057177,-400.0,0.00019726,2]
[359613464,1746183057187,-88.15424795,0.00019726,2]
[359613465,1746183057759,-150.0,0.00019036,2]
[359613466,1746183057770,-400.0,0.00019178,2]
[359613467,1746183057781,-329.999999,0.00019178,2]
[359613468,1746183057800,-70.000001,0.00019178,2]
[359613469,1746183057810,-400.0,0.00019452,2]
[359613470,1746183057821,-432.97666168,0.00019726,2]
[359613910,1746183622562,1010.0890826,0.0002,10]
[359613942,1746184231950,-708.9279623,0.00018037,2]
[359613943,1746184231960,-259.737905,0.00018065,2]
[359613944,1746184231970,-3309.2726883,0.00018123,2]
[359613945,1746184231979,-207.4,0.00018585,2]
[359613946,1746184231988,-150.0,0.000189,2]
[359613947,1746184231998,-1000.0,0.00018936,2]
[359613948,1746184232007,-1575.0,0.00019,2]
[359613949,1746184232016,-1200.0,0.00019048,2]
[359613950,1746184232025,-300.0,0.00019049,2]
[359613951,1746184232034,-300.0,0.00019049,2]
[359613952,1746184232044,-300.0,0.00019049,2]
[359613953,1746184232053,-300.0,0.00019049,2]
[359613955,1746184232064,-34354.88738337,0.0001905,2]
[359613957,1746184232074,-544.0577353,0.0001905,2]
[359613959,1746184232084,-500.0,0.0001905,2]
[359613961,1746184232094,-500.0,0.0001905,2]
[359613963,1746184232103,-341.46532626,0.0001905,2]
[359613965,1746184232112,-500.0,0.0001905,2]
[359613967,1746184232122,-334.14042293,0.0001905,2]
[359613969,1746184232131,-6158.71062159,0.00019053,2]
[359613971,1746184232141,-318.75001795,0.00019053,2]
[359613973,1746184232151,-150.0,0.00019054,2]
[359613975,1746184232160,-545.0,0.00019054,2]
[359613977,1746184232169,-2244.0,0.00019054,2]
[359613979,1746184232179,-707.0,0.00019054,2]
[359613981,1746184232189,-223.11,0.00019168,3]
[359613982,1746184232198,-669.33,0.00019168,3]
[359613983,1746184232208,-400.0,0.00019178,2]
[359613984,1746184232217,-400.0,0.00019178,2]
[359613985,1746184232226,-400.0,0.00019178,2]
[359613986,1746184232235,-500.0,0.00019178,2]
[359613987,1746184232244,-439.8869064,0.00019178,2]
[359613988,1746184232254,-400.0,0.00019178,2]
[359613989,1746184232263,-400.0,0.00019178,2]
[359613990,1746184232272,-400.0,0.00019178,2]
[359613991,1746184232281,-415.80495733,0.00019178,2]
[359613992,1746184232292,-400.0,0.00019178,2]
[359613993,1746184232302,-500.0,0.00019178,2]
[359613994,1746184232311,-400.0,0.00019178,2]
[359613995,1746184232320,-502.38698732,0.00019178,2]
[359613996,1746184232329,-231.87144426,0.00019178,2]
[359613997,1746184232339,-400.0,0.00019178,2]
[359613998,1746184232349,-400.0,0.00019178,2]
[359613999,1746184232358,-163.84033092,0.00019178,2]
[359614000,1746184232367,-400.0,0.00019178,2]
[359614001,1746184232377,-400.0,0.00019178,2]
[359614002,1746184232387,-500.0,0.00019178,2]
[359614003,1746184232396,-400.0,0.00019178,2]
[359614004,1746184232405,-400.0,0.00019178,2]
[359614005,1746184232414,-400.0,0.00019178,2]
[359614006,1746184232423,-702.25,0.00019178,2]
[359614007,1746184232433,-507.28960951,0.00019178,2]
[359614008,1746184232443,-400.0,0.00019178,2]
[359614009,1746184232453,-400.0,0.00019178,2]
[359614010,1746184232463,-400.0,0.00019178,2]
[359614011,1746184232473,-400.0,0.00019178,2]
[359614012,1746184232527,-502.18769701,0.00019178,2]
[359614013,1746184232538,-400.0,0.00019178,2]
[359614014,1746184232548,-407.77599378,0.00019178,2]
[359614015,1746184232559,-400.0,0.00019178,2]
[359614016,1746184232568,-500.0,0.00019178,2]
[359614017,1746184232579,-500.0,0.00019178,2]
[359614018,1746184232588,-500.0,0.00019178,2]
[359614019,1746184232597,-400.0,0.00019178,2]
[359614020,1746184232606,-400.0,0.00019178,2]
[359614021,1746184232615,-500.0,0.00019178,2]
[359614022,1746184232625,-500.0,0.00019178,2]
[359614023,1746184232634,-500.0,0.00019178,2]
[359614024,1746184232643,-400.0,0.00019178,2]
[359614025,1746184232653,-400.0,0.00019178,2]
[359614026,1746184232663,-425.21646815,0.00019178,2]
[359614027,1746184232673,-400.0,0.00019178,2]
[359614028,1746184232683,-400.0,0.00019178,2]
[359614029,1746184232692,-500.0,0.00019178,2]
[359614030,1746184232702,-500.0,0.00019178,2]
[359614031,1746184232711,-262.35877397,0.00019178,2]
[359614032,1746184232720,-400.0,0.00019178,2]
[359614033,1746184232731,-503.25981306,0.00019178,2]
[359614034,1746184232741,-501.4479687,0.00019178,2]
[359614035,1746184232751,-400.0,0.00019178,2]
[359614036,1746184232760,-400.0,0.00019178,2]
[359614037,1746184232770,-400.0,0.00019178,2]
[359614038,1746184232779,-400.0,0.00019178,2]
[359614039,1746184232789,-400.0,0.00019178,2]
[359614040,1746184232799,-400.0,0.00019178,2]
[359614041,1746184232808,-500.0,0.00019178,2]
[359614042,1746184232817,-500.0,0.00019178,2]
[359614043,1746184232826,-500.0,0.00019178,2]
[359614044,1746184232835,-505.7175877,0.00019178,2]
[359614045,1746184232844,-477.7,0.00019178,2]
[359614046,1746184232853,-500.0,0.00019178,2]
[359614047,1746184232862,-500.0,0.00019178,2]
[359614048,1746184232871,-501.5519591,0.00019178,2]
[359614049,1746184232880,-475.05,0.00019178,2]
[359614050,1746184232889,-400.0,0.00019178,2]
[359614051,1746184232898,-513.32776105,0.00019178,2]
[359614052,1746184232907,-501.39744697,0.00019178,2]
[359614053,1746184232916,-400.0,0.00019178,2]
[359614054,1746184232925,-500.0,0.00019178,2]
[359614055,1746184232934,-1367.75,0.00019178,2]
[359614056,1746184232943,-1100.21,0.00019178,2]
[359614057,1746184232952,-511.54472949,0.00019178,2]
[359614058,1746184232961,-400.0,0.00019178,2]
[359614059,1746184232969,-500.0,0.00019178,2]
[359614060,1746184232979,-400.0,0.00019178,2]
[359614061,1746184232988,-400.0,0.00019178,2]
[359614062,1746184232997,-400.0,0.00019178,2]
[359614063,1746184233007,-517.20077758,0.00019178,2]
[359614064,1746184233016,-400.0,0.00019178,2]
[359614065,1746184233026,-1000.0,0.00019178,2]
[359614066,1746184233035,-400.0,0.00019178,2]
[359614067,1746184233044,-695.1,0.00019178,2]
[359614068,1746184233059,-400.0,0.00019178,2]
[359614069,1746184233068,-500.0,0.00019178,2]
[359614070,1746184233078,-526.95055878,0.00019178,2]
[359614071,1746184233088,-392.20366138,0.00019178,2]
[359614072,1746184233099,-686.28,0.00019178,2]
[359614073,1746184233108,-351.71621545,0.00019178,2]
[359614074,1746184233118,-400.0,0.00019178,2]
[359614075,1746184233128,-500.0,0.00019178,2]
[359614076,1746184233139,-500.0,0.00019178,2]
[359614077,1746184233149,-500.0,0.00019178,2]
[359614078,1746184233158,-505.06480487,0.00019178,2]
[359614079,1746184233168,-400.0,0.00019178,2]
[359614080,1746184233177,-500.0,0.00019178,2]
[359614081,1746184233187,-501.66015232,0.00019178,2]
[359614082,1746184233196,-400.0,0.00019178,2]
[359614083,1746184233206,-500.0,0.00019178,2]
[359614084,1746184233215,-400.0,0.00019178,2]
[359614085,1746184233225,-400.0,0.00019178,2]
[359614086,1746184233234,-500.0,0.00019178,2]
[359614087,1746184233244,-400.0,0.00019178,2]
[359614088,1746184233253,-400.0,0.00019178,2]
[359614089,1746184233263,-500.0,0.00019178,2]
[359614090,1746184233272,-508.27884488,0.00019178,2]
[359614091,1746184233282,-400.0,0.00019178,2]
[359614092,1746184233293,-400.0,0.00019178,2]
[359614093,1746184233302,-400.0,0.00019178,2]
[359614094,1746184233312,-2226.55,0.00019178,2]
[359614095,1746184233321,-500.0,0.00019178,2]
[359614096,1746184233330,-400.0,0.00019178,2]
[359614097,1746184233340,-515.79047758,0.00019178,2]
[359614098,1746184233349,-400.0,0.00019178,2]
[359614099,1746184233360,-400.0,0.00019178,2]
[359614100,1746184233369,-400.0,0.00019178,2]
[359614101,1746184233379,-400.0,0.00019178,2]
[359614102,1746184233388,-500.0,0.00019178,2]
[359614103,1746184233397,-400.0,0.00019178,2]
[359614104,1746184233407,-502.94011578,0.00019178,2]
[359614105,1746184233417,-400.0,0.00019178,2]
[359614106,1746184233426,-400.0,0.00019178,2]
[359614107,1746184233436,-400.0,0.00019178,2]
[359614108,1746184233446,-523.99367045,0.00019178,2]
[359614109,1746184233455,-400.0,0.00019178,2]
[359614110,1746184233465,-500.0,0.00019178,2]
[359614111,1746184233475,-400.0,0.00019178,2]
[359614112,1746184233485,-400.0,0.00019178,2]
[359614113,1746184233495,-674.29,0.00019178,2]
[359614114,1746184233505,-400.0,0.00019178,2]
[359614115,1746184233514,-400.0,0.00019178,2]
[359614116,1746184233524,-500.0,0.00019178,2]
[359614117,1746184233534,-500.0,0.00019178,2]
[359614118,1746184233543,-225.15986514,0.00019178,2]
[359614119,1746184233553,-400.0,0.00019178,2]
[359614120,1746184233563,-400.0,0.00019178,2]
[359614121,1746184233572,-427.67725681,0.00019178,2]
[359614122,1746184233582,-500.0,0.00019178,2]
[359614123,1746184233592,-400.0,0.00019178,2]
[359614124,1746184233602,-400.0,0.00019178,2]
[359614125,1746184233612,-500.0,0.00019178,2]
[359614126,1746184233621,-817.46,0.00019178,2]
[359614127,1746184233631,-500.0,0.00019178,2]
[359614128,1746184233641,-400.0,0.00019178,2]
[359614129,1746184233651,-503.34108972,0.00019178,2]
[359614130,1746184233661,-500.0,0.00019178,2]
[359614131,1746184233671,-400.0,0.00019178,2]
[359614132,1746184233681,-400.0,0.00019178,2]
[359614133,1746184233692,-400.0,0.00019178,2]
[359614134,1746184233702,-400.0,0.00019178,2]
[359614135,1746184233712,-400.0,0.00019178,2]
[359614136,1746184233721,-1230.37,0.00019178,2]
[359614137,1746184233731,-400.0,0.00019178,2]
[359614138,1746184233741,-400.0,0.00019178,2]
[359614139,1746184233750,-400.90421449,0.00019178,2]
[359614140,1746184233760,-860.59,0.00019178,2]
[359614141,1746184233769,-1048.14,0.00019178,2]
[359614142,1746184233779,-400.0,0.00019178,2]
[359614143,1746184233789,-400.0,0.00019178,2]
[359614144,1746184233799,-501.41403097,0.00019178,2]
[359614145,1746184233808,-503.67147837,0.00019178,2]
[359614146,1746184233818,-619.55,0.00019178,2]
[359614147,1746184233827,-400.0,0.00019178,2]
[359614148,1746184233837,-400.0,0.00019178,2]
[359614149,1746184233847,-500.0,0.00019178,2]
[359614150,1746184233857,-510.22214752,0.00019178,2]
[359614151,1746184233866,-400.0,0.00019178,2]
[359614152,1746184233876,-400.0,0.00019178,2]
[359614153,1746184233886,-400.0,0.00019178,2]
[359614154,1746184233896,-338.19740034,0.00019178,2]
[359614155,1746184233906,-400.0,0.00019178,2]
[359614156,1746184233916,-506.89003109,0.00019178,2]
[359614157,1746184233926,-400.0,0.00019178,2]
[359614158,1746184233935,-400.0,0.00019178,2]
[359614159,1746184233945,-506.5338466,0.00019178,2]
[359614160,1746184233955,-500.0,0.00019178,2]
[359614161,1746184233964,-400.0,0.00019178,2]
[359614162,1746184233974,-400.0,0.00019178,2]
[359614163,1746184233983,-400.0,0.00019178,2]
[359614164,1746184233993,-400.0,0.00019178,2]
[359614165,1746184234004,-505.1083004,0.00019178,2]
[359614166,1746184234014,-505.48800886,0.00019178,2]
[359614167,1746184234024,-500.0,0.00019178,2]
[359614168,1746184234034,-400.0,0.00019178,2]
[359614169,1746184234043,-400.0,0.00019178,2]
[359614170,1746184234054,-500.0,0.00019178,2]
[359614171,1746184234066,-506.83957224,0.00019178,2]
[359614172,1746184234075,-430.61,0.00019178,2]
[359614173,1746184234085,-520.37495997,0.00019178,2]
[359614174,1746184234095,-503.15760622,0.00019178,2]
[359614175,1746184234104,-890.93,0.00019178,2]
[359614176,1746184234113,-400.0,0.00019178,2]
[359614177,1746184234123,-401.7142066,0.00019178,2]
[359614178,1746184234132,-400.0,0.00019178,2]
[359614179,1746184234142,-400.0,0.00019178,2]